[Event "*** SCC Grand Prix: Titled Tuesday Blitz"]
[Site "Chess.com"]
[Date "2020.07.07"]
[Round "2"]
[White "ChessArchitect64"]
[Black "SHIVACalypso"]
[Result "0-1"]
[WhiteElo "1875"]
[BlackElo "2347"]
[TimeControl "180+1"]
[EndTime "10:17:35 PDT"]
[Termination "SHIVACalypso won by resignation"]

1. d4 {[%clk 0:03:00.9]} 1... e6 {[%clk 0:03:00]} 2. Nf3 {[%clk 0:02:57]} 2...
Nf6 {[%clk 0:02:59.7]} 3. Bg5 {[%clk 0:02:56.3]} 3... d5 {[%clk 0:02:59.5]} 4.
e3 {[%clk 0:02:55.4]} 4... Be7 {[%clk 0:02:58.4]} 5. Bd3 {[%clk 0:02:54.9]} 5...
h6 {[%clk 0:02:57.2]} 6. Bh4 {[%clk 0:02:53.1]} 6... O-O {[%clk 0:02:57.1]} 7.
O-O {[%clk 0:02:52.3]} 7... c5 {[%clk 0:02:57]} 8. c3 {[%clk 0:02:52.2]} 8...
Nc6 {[%clk 0:02:57]} 9. Nbd2 {[%clk 0:02:52.4]} 9... Nd7 {[%clk 0:02:54.6]} 10.
Bg3 {[%clk 0:02:44.3]} 10... Bf6 {[%clk 0:02:51.7]} 11. Bd6 {[%clk 0:02:32.4]}
11... Re8 {[%clk 0:02:49]} 12. dxc5 {[%clk 0:02:32.4]} 12... e5 {[%clk
0:02:37.7]} 13. e4 {[%clk 0:02:32]} 13... d4 {[%clk 0:02:35.1]} 14. c4 {[%clk
0:01:23.8]} 14... Be7 {[%clk 0:02:29]} 15. a3 {[%clk 0:01:19.8]} 15... Bxd6
{[%clk 0:02:27.8]} 16. cxd6 {[%clk 0:01:19.7]} 16... Qf6 {[%clk 0:02:21]} 17. b4
{[%clk 0:01:18.3]} 17... Qxd6 {[%clk 0:02:19.1]} 18. c5 {[%clk 0:01:16.8]} 18...
Qf6 {[%clk 0:02:13.8]} 19. Nc4 {[%clk 0:01:15]} 19... Nf8 {[%clk 0:02:00.7]} 20.
Nfd2 {[%clk 0:01:03.4]} 20... Ne6 {[%clk 0:01:55]} 21. Nd6 {[%clk 0:01:02.4]}
21... Rd8 {[%clk 0:01:51.3]} 22. N2c4 {[%clk 0:01:01.3]} 22... Nf4 {[%clk
0:01:45.4]} 23. Qf3 {[%clk 0:00:51.2]} 23... h5 {[%clk 0:01:30.4]} 24. h3 {[%clk
0:00:48]} 24... Nxh3+ {[%clk 0:01:28.2]} 25. Kh2 {[%clk 0:00:45.3]} 25... Nf4
{[%clk 0:01:27.3]} 26. g3 {[%clk 0:00:39.2]} 26... Bg4 {[%clk 0:01:24.6]} 27.
Qxg4 {[%clk 0:00:36.8]} 27... hxg4 {[%clk 0:01:23.1]} 28. gxf4 {[%clk 0:00:37]}
28... exf4 {[%clk 0:01:21]} 29. Rh1 {[%clk 0:00:36.3]} 29... g6 {[%clk
0:01:12.5]} 30. Nxb7 {[%clk 0:00:33.9]} 30... Rdb8 {[%clk 0:01:06.9]} 31. Nbd6
{[%clk 0:00:33.4]} 31... Kg7 {[%clk 0:01:06.1]} 32. Kg2 {[%clk 0:00:31.5]} 32...
f3+ {[%clk 0:01:04.5]} 33. Kg3 {[%clk 0:00:27.1]} 33... Rh8 {[%clk 0:00:57.7]}
34. Rag1 {[%clk 0:00:21.7]} 34... Ne5 {[%clk 0:00:52.2]} 35. b5 {[%clk
0:00:20.3]} 0-1

[Event "*** SCC Grand Prix: Titled Tuesday Blitz"]
[Site "Chess.com"]
[Date "2020.07.07"]
[Round "2"]
[White "Shield12"]
[Black "mamey78"]
[Result "1-0"]
[WhiteElo "2828"]
[BlackElo "2438"]
[TimeControl "180+1"]
[EndTime "10:17:36 PDT"]
[Termination "Shield12 won by resignation"]

1. e4 {[%clk 0:03:00.9]} 1... e5 {[%clk 0:02:59.1]} 2. Nf3 {[%clk 0:03:00.2]}
2... Nc6 {[%clk 0:02:59.2]} 3. Bb5 {[%clk 0:03:00.8]} 3... a6 {[%clk 0:02:58.7]}
4. Ba4 {[%clk 0:03:01.2]} 4... Nf6 {[%clk 0:02:59]} 5. O-O {[%clk 0:03:01.4]}
5... b5 {[%clk 0:02:59.3]} 6. Bb3 {[%clk 0:03:01.4]} 6... Be7 {[%clk 0:03:00.1]}
7. d3 {[%clk 0:02:58.9]} 7... O-O {[%clk 0:02:59.2]} 8. Nc3 {[%clk 0:02:58.9]}
8... Bb7 {[%clk 0:02:55.6]} 9. a3 {[%clk 0:02:55]} 9... d6 {[%clk 0:02:52.7]}
10. Nd5 {[%clk 0:02:53.8]} 10... Nxd5 {[%clk 0:02:31.4]} 11. Bxd5 {[%clk
0:02:54.7]} 11... Qd7 {[%clk 0:02:30]} 12. Re1 {[%clk 0:02:52.6]} 12... Nd8
{[%clk 0:02:25.3]} 13. Ba2 {[%clk 0:02:52]} 13... Ne6 {[%clk 0:02:20.7]} 14. c3
{[%clk 0:02:52.1]} 14... Kh8 {[%clk 0:02:15.1]} 15. d4 {[%clk 0:02:50.2]} 15...
f6 {[%clk 0:02:00.9]} 16. h3 {[%clk 0:02:47.7]} 16... exd4 {[%clk 0:01:34.7]}
17. cxd4 {[%clk 0:02:42.1]} 17... Rae8 {[%clk 0:01:33.8]} 18. d5 {[%clk
0:02:38.8]} 18... Ng5 {[%clk 0:01:30.1]} 19. Nd4 {[%clk 0:02:36.2]} 19... Bd8
{[%clk 0:01:23.3]} 20. Qd3 {[%clk 0:02:31.6]} 20... c5 {[%clk 0:00:57.1]} 21.
dxc6 {[%clk 0:02:29.4]} 21... Bxc6 {[%clk 0:00:56.9]} 22. Nxc6 {[%clk
0:02:28.7]} 22... Qxc6 {[%clk 0:00:57.8]} 23. Bd5 {[%clk 0:02:29.4]} 23... Qd7
{[%clk 0:00:53.6]} 24. Bf4 {[%clk 0:02:28.4]} 24... Nf7 {[%clk 0:00:49]} 25.
Rac1 {[%clk 0:02:27.2]} 25... Ne5 {[%clk 0:00:48.3]} 26. Qg3 {[%clk 0:02:25.4]}
26... Bb6 {[%clk 0:00:44.6]} 27. Be3 {[%clk 0:01:59.3]} 27... Bxe3 {[%clk
0:00:42.8]} 28. Qxe3 {[%clk 0:02:00.2]} 28... f5 {[%clk 0:00:27.1]} 29. f4
{[%clk 0:01:57.7]} 29... Nc4 {[%clk 0:00:27.3]} 30. Qd4 {[%clk 0:01:53.5]} 30...
fxe4 {[%clk 0:00:26]} 31. b3 {[%clk 0:01:53.6]} 31... Na5 {[%clk 0:00:17.7]} 32.
Qb6 {[%clk 0:01:42.8]} 32... Qd8 {[%clk 0:00:15.1]} 33. Qxd8 {[%clk 0:01:42.6]}
33... Rxd8 {[%clk 0:00:15.8]} 34. Rxe4 {[%clk 0:01:43.5]} 34... g6 {[%clk
0:00:13.6]} 35. Rc7 {[%clk 0:01:42.2]} 35... Rfe8 {[%clk 0:00:13]} 36. Rxe8+
{[%clk 0:01:34.8]} 36... Rxe8 {[%clk 0:00:13.9]} 37. Ra7 {[%clk 0:01:35.7]}
37... Re1+ {[%clk 0:00:13.3]} 38. Kf2 {[%clk 0:01:35.6]} 38... Rd1 {[%clk
0:00:14.2]} 39. Rxa6 {[%clk 0:01:34]} 39... Rxd5 {[%clk 0:00:12.9]} 40. Rxa5
{[%clk 0:01:34.4]} 40... Rd2+ {[%clk 0:00:11.2]} 41. Kf1 {[%clk 0:01:34.4]}
41... Ra2 {[%clk 0:00:12.1]} 42. Kg1 {[%clk 0:01:29.9]} 42... Kg7 {[%clk
0:00:11.8]} 43. Kh2 {[%clk 0:01:29]} 43... Kf6 {[%clk 0:00:11.6]} 44. Kg3 {[%clk
0:01:29]} 44... h5 {[%clk 0:00:10.7]} 45. Kf3 {[%clk 0:01:28.7]} 45... Kf5
{[%clk 0:00:09.7]} 46. Rxb5+ {[%clk 0:01:27.9]} 1-0

[Event "*** SCC Grand Prix: Titled Tuesday Blitz"]
[Site "Chess.com"]
[Date "2020.07.07"]
[Round "2"]
[White "Reader777"]
[Black "DishonorOnYourCow"]
[Result "1-0"]
[WhiteElo "2668"]
[BlackElo "2324"]
[TimeControl "180+1"]
[EndTime "10:17:38 PDT"]
[Termination "Reader777 won on time"]

1. d4 {[%clk 0:03:00.9]} 1... Nf6 {[%clk 0:02:59.2]} 2. c4 {[%clk 0:03:00.7]}
2... g6 {[%clk 0:02:58.8]} 3. g3 {[%clk 0:02:59.7]} 3... Bg7 {[%clk 0:02:54.9]}
4. Bg2 {[%clk 0:02:59.9]} 4... d5 {[%clk 0:02:53.6]} 5. cxd5 {[%clk 0:02:59.2]}
5... Nxd5 {[%clk 0:02:52.4]} 6. e4 {[%clk 0:02:59.3]} 6... Nb6 {[%clk
0:02:51.6]} 7. Ne2 {[%clk 0:02:58.5]} 7... O-O {[%clk 0:02:45.9]} 8. O-O {[%clk
0:02:56.9]} 8... Nc6 {[%clk 0:02:38.7]} 9. d5 {[%clk 0:02:52.9]} 9... Na5 {[%clk
0:02:36.6]} 10. Nbc3 {[%clk 0:02:47.6]} 10... c6 {[%clk 0:02:28.9]} 11. b3
{[%clk 0:02:42.8]} 11... cxd5 {[%clk 0:02:26.1]} 12. exd5 {[%clk 0:02:42.4]}
12... Bg4 {[%clk 0:02:18.4]} 13. Bb2 {[%clk 0:02:39.4]} 13... Rc8 {[%clk
0:02:08.4]} 14. Rc1 {[%clk 0:02:33.9]} 14... Qd7 {[%clk 0:01:50.2]} 15. Re1
{[%clk 0:02:03.2]} 15... Rfd8 {[%clk 0:01:43.8]} 16. Qd2 {[%clk 0:01:13.9]}
16... Bxe2 {[%clk 0:00:28.7]} 17. Qxe2 {[%clk 0:01:09.1]} 17... Bf6 {[%clk
0:00:14.5]} 18. Red1 {[%clk 0:00:58]} 18... Qf5 {[%clk 0:00:08.3]} 19. Ne4
{[%clk 0:00:38.2]} 19... Bxb2 {[%clk 0:00:07.2]} 20. Rxc8 {[%clk 0:00:38.1]}
20... Rxc8 {[%clk 0:00:06.8]} 21. Qxb2 {[%clk 0:00:38.3]} 21... Nd7 {[%clk
0:00:03.6]} 22. Qa3 {[%clk 0:00:35.4]} 22... b6 {[%clk 0:00:02.5]} 23. Qxe7
{[%clk 0:00:34.8]} 1-0

[Event "*** SCC Grand Prix: Titled Tuesday Blitz"]
[Site "Chess.com"]
[Date "2020.07.07"]
[Round "2"]
[White "Boudicca64"]
[Black "Trickov"]
[Result "1-0"]
[WhiteElo "1805"]
[BlackElo "2327"]
[TimeControl "180+1"]
[EndTime "10:17:38 PDT"]
[Termination "Boudicca64 won by resignation"]

1. e4 {[%clk 0:02:58.2]} 1... c5 {[%clk 0:02:59.4]} 2. g3 {[%clk 0:02:56.2]}
2... Nc6 {[%clk 0:02:58.4]} 3. Bg2 {[%clk 0:02:55.5]} 3... g6 {[%clk 0:02:58.9]}
4. Ne2 {[%clk 0:02:54.4]} 4... Bg7 {[%clk 0:02:59.2]} 5. c3 {[%clk 0:02:54]}
5... e5 {[%clk 0:02:59.1]} 6. O-O {[%clk 0:02:53.3]} 6... Nge7 {[%clk
0:02:59.1]} 7. d3 {[%clk 0:02:53.5]} 7... O-O {[%clk 0:02:57.2]} 8. Be3 {[%clk
0:02:53.8]} 8... b6 {[%clk 0:02:56.5]} 9. d4 {[%clk 0:02:51.9]} 9... d6 {[%clk
0:02:51.1]} 10. d5 {[%clk 0:02:43.1]} 10... Nb8 {[%clk 0:02:45.6]} 11. c4 {[%clk
0:02:42]} 11... f5 {[%clk 0:02:44.1]} 12. Nbc3 {[%clk 0:02:38.1]} 12... Nd7
{[%clk 0:02:42.8]} 13. f4 {[%clk 0:02:36.8]} 13... Nf6 {[%clk 0:02:24.8]} 14.
fxe5 {[%clk 0:02:23.4]} 14... dxe5 {[%clk 0:02:23.8]} 15. d6 {[%clk 0:02:22.5]}
15... Nc6 {[%clk 0:02:10.8]} 16. exf5 {[%clk 0:02:21.1]} 16... Bd7 {[%clk
0:02:04.5]} 17. fxg6 {[%clk 0:02:11]} 17... hxg6 {[%clk 0:01:59.3]} 18. Nd5
{[%clk 0:02:06]} 18... Nd4 {[%clk 0:01:58.3]} 19. Nxf6+ {[%clk 0:01:57.9]} 19...
Bxf6 {[%clk 0:01:52]} 20. Bxa8 {[%clk 0:01:54.5]} 20... Qxa8 {[%clk 0:01:51]}
21. Bxd4 {[%clk 0:01:53.8]} 21... exd4 {[%clk 0:01:46.8]} 22. Nf4 {[%clk
0:01:51.9]} 22... Bf5 {[%clk 0:01:27]} 23. Nd5 {[%clk 0:01:37.8]} 23... Bg5
{[%clk 0:01:11.7]} 24. Ne7+ {[%clk 0:01:34.7]} 24... Bxe7 {[%clk 0:01:04.9]} 25.
dxe7 {[%clk 0:01:33.3]} 25... Re8 {[%clk 0:01:04.1]} 26. Qe2 {[%clk 0:01:20.4]}
26... Qc6 {[%clk 0:00:51.9]} 27. Rae1 {[%clk 0:01:16.5]} 27... d3 {[%clk
0:00:36]} 28. Qf3 {[%clk 0:01:09.6]} 28... Qd6 {[%clk 0:00:21.3]} 29. Qd5+
{[%clk 0:01:04.6]} 29... Qxd5 {[%clk 0:00:19.1]} 30. cxd5 {[%clk 0:01:03.9]}
30... c4 {[%clk 0:00:18.3]} 31. d6 {[%clk 0:01:02.1]} 31... b5 {[%clk 0:00:17]}
32. Rxf5 {[%clk 0:01:00.2]} 32... gxf5 {[%clk 0:00:15.8]} 33. d7 {[%clk
0:00:59.8]} 33... d2 {[%clk 0:00:15.1]} 34. dxe8=Q+ {[%clk 0:00:55.5]} 1-0

[Event "*** SCC Grand Prix: Titled Tuesday Blitz"]
[Site "Chess.com"]
[Date "2020.07.07"]
[Round "2"]
[White "kingofkolkata"]
[Black "Zarinur"]
[Result "1-0"]
[WhiteElo "2417"]
[BlackElo "2128"]
[TimeControl "180+1"]
[EndTime "10:17:42 PDT"]
[Termination "kingofkolkata won on time"]

1. d4 {[%clk 0:03:00.9]} 1... Nf6 {[%clk 0:02:58.8]} 2. Bd2 {[%clk 0:02:59]}
2... d5 {[%clk 0:02:55.9]} 3. c4 {[%clk 0:02:52.6]} 3... c6 {[%clk 0:02:52.3]}
4. Nc3 {[%clk 0:02:52.6]} 4... Bf5 {[%clk 0:02:50.7]} 5. cxd5 {[%clk 0:02:46.7]}
5... cxd5 {[%clk 0:02:48.5]} 6. Qb3 {[%clk 0:02:46.7]} 6... b6 {[%clk
0:02:31.4]} 7. Bg5 {[%clk 0:02:30.7]} 7... e6 {[%clk 0:02:28.6]} 8. e3 {[%clk
0:02:27.8]} 8... Be7 {[%clk 0:02:27.5]} 9. Bb5+ {[%clk 0:02:24.4]} 9... Nbd7
{[%clk 0:02:26.6]} 10. Nf3 {[%clk 0:02:17.9]} 10... O-O {[%clk 0:02:22]} 11. O-O
{[%clk 0:02:16.5]} 11... h6 {[%clk 0:01:26.4]} 12. Bh4 {[%clk 0:02:11.2]} 12...
a6 {[%clk 0:01:01]} 13. Bc6 {[%clk 0:01:51.4]} 13... Ra7 {[%clk 0:00:54.2]} 14.
Ne5 {[%clk 0:01:43.6]} 14... Nxe5 {[%clk 0:00:47.3]} 15. dxe5 {[%clk 0:01:44.5]}
15... Ne4 {[%clk 0:00:45.3]} 16. Bxe7 {[%clk 0:01:44.5]} 16... Qxe7 {[%clk
0:00:45.7]} 17. Nxe4 {[%clk 0:01:44.8]} 17... Bxe4 {[%clk 0:00:43.4]} 18. Qxb6
{[%clk 0:01:44.2]} 18... Rc8 {[%clk 0:00:34.2]} 19. f3 {[%clk 0:01:38.1]} 19...
Bd3 {[%clk 0:00:26.2]} 20. Rfd1 {[%clk 0:01:35.3]} 20... Bg6 {[%clk 0:00:18.3]}
21. Rac1 {[%clk 0:01:35.1]} 21... Rac7 {[%clk 0:00:17.9]} 22. b4 {[%clk
0:01:23.5]} 22... Kh7 {[%clk 0:00:13.8]} 23. a4 {[%clk 0:01:23.3]} 23... f6
{[%clk 0:00:12.4]} 24. exf6 {[%clk 0:01:21.2]} 24... Qxf6 {[%clk 0:00:10.1]} 25.
Qxa6 {[%clk 0:01:16.3]} 25... Qb2 {[%clk 0:00:08.8]} 26. b5 {[%clk 0:01:12.2]}
26... Qb3 {[%clk 0:00:05.3]} 27. Re1 {[%clk 0:01:07.5]} 27... Bd3 {[%clk
0:00:03.3]} 28. a5 {[%clk 0:00:59.6]} 28... Qb4 {[%clk 0:00:03.1]} 29. Qb6
{[%clk 0:00:57.4]} 29... Qa4 {[%clk 0:00:01.1]} 30. a6 {[%clk 0:00:55.8]} 30...
Qb4 {[%clk 0:00:01.2]} 31. Qd4 {[%clk 0:00:55.4]} 1-0

[Event "*** SCC Grand Prix: Titled Tuesday Blitz"]
[Site "Chess.com"]
[Date "2020.07.07"]
[Round "2"]
[White "Carnivoras"]
[Black "GGfrances"]
[Result "0-1"]
[WhiteElo "2593"]
[BlackElo "2323"]
[TimeControl "180+1"]
[EndTime "10:17:43 PDT"]
[Termination "GGfrances won by resignation"]

1. d4 {[%clk 0:03:00.9]} 1... Nf6 {[%clk 0:02:59.3]} 2. Nf3 {[%clk 0:03:01.8]}
2... g6 {[%clk 0:02:58.7]} 3. Bg5 {[%clk 0:03:01.4]} 3... Bg7 {[%clk 0:02:58.9]}
4. Nbd2 {[%clk 0:03:02]} 4... d5 {[%clk 0:02:49.6]} 5. e3 {[%clk 0:03:01.7]}
5... Nbd7 {[%clk 0:02:46.9]} 6. Bd3 {[%clk 0:03:00.2]} 6... O-O {[%clk
0:02:46.8]} 7. O-O {[%clk 0:03:00.3]} 7... Re8 {[%clk 0:02:44.3]} 8. c4 {[%clk
0:02:59]} 8... c5 {[%clk 0:02:38.7]} 9. cxd5 {[%clk 0:02:54.8]} 9... cxd4 {[%clk
0:02:35.8]} 10. Nxd4 {[%clk 0:02:55.4]} 10... Nxd5 {[%clk 0:02:32.6]} 11. Qb3
{[%clk 0:02:43.2]} 11... Nc5 {[%clk 0:02:29.8]} 12. Qc2 {[%clk 0:02:40.4]} 12...
Nxd3 {[%clk 0:02:29.7]} 13. Qxd3 {[%clk 0:02:41.3]} 13... h6 {[%clk 0:02:26]}
14. Bh4 {[%clk 0:02:40.3]} 14... g5 {[%clk 0:02:18.1]} 15. Bg3 {[%clk
0:02:40.2]} 15... e5 {[%clk 0:02:16.1]} 16. N4b3 {[%clk 0:00:39.5]} 16... Be6
{[%clk 0:02:08.9]} 17. e4 {[%clk 0:00:36.4]} 17... Nf4 {[%clk 0:02:06]} 18. Qe3
{[%clk 0:00:32.3]} 18... b6 {[%clk 0:01:55.8]} 19. Rfd1 {[%clk 0:00:28.7]} 19...
Re7 {[%clk 0:01:45.3]} 20. Rac1 {[%clk 0:00:24.8]} 20... Rd7 {[%clk 0:01:42.4]}
21. Rf1 {[%clk 0:00:11.1]} 21... Rc8 {[%clk 0:01:38.6]} 22. Rxc8 {[%clk
0:00:10.3]} 22... Qxc8 {[%clk 0:01:38.4]} 23. Nb1 {[%clk 0:00:08.5]} 23... Rd3
{[%clk 0:01:34.5]} 24. Qe1 {[%clk 0:00:08.9]} 24... Qc2 {[%clk 0:01:31.4]} 25.
Nc3 {[%clk 0:00:08.3]} 25... Bxb3 {[%clk 0:01:25.3]} 26. axb3 {[%clk 0:00:08.1]}
26... Qxb3 {[%clk 0:01:16.9]} 27. Nd5 {[%clk 0:00:07.1]} 27... Qxb2 {[%clk
0:01:12.5]} 28. Ne7+ {[%clk 0:00:07.2]} 28... Kh8 {[%clk 0:01:09.3]} 29. Nf5
{[%clk 0:00:08.1]} 29... a5 {[%clk 0:01:03]} 30. Bxf4 {[%clk 0:00:06.2]} 30...
exf4 {[%clk 0:01:00.5]} 31. f3 {[%clk 0:00:04.5]} 31... Rd2 {[%clk 0:00:55.6]}
32. Kh1 {[%clk 0:00:02.4]} 32... Rxg2 {[%clk 0:00:51.4]} 0-1

[Event "*** SCC Grand Prix: Titled Tuesday Blitz"]
[Site "Chess.com"]
[Date "2020.07.07"]
[Round "2"]
[White "Oligan22"]
[Black "chargemax23"]
[Result "0-1"]
[WhiteElo "2473"]
[BlackElo "2682"]
[TimeControl "180+1"]
[EndTime "10:17:46 PDT"]
[Termination "chargemax23 won by resignation"]

1. e4 {[%clk 0:03:00.9]} 1... g6 {[%clk 0:02:59.6]} 2. d4 {[%clk 0:03:00.6]}
2... Bg7 {[%clk 0:02:59.9]} 3. Nc3 {[%clk 0:03:01.2]} 3... d6 {[%clk 0:03:00]}
4. f4 {[%clk 0:03:01.8]} 4... a6 {[%clk 0:02:59.9]} 5. Nf3 {[%clk 0:03:02.3]}
5... Bg4 {[%clk 0:02:59.7]} 6. Be3 {[%clk 0:02:59.9]} 6... Nc6 {[%clk
0:02:59.1]} 7. e5 {[%clk 0:02:43.2]} 7... Nh6 {[%clk 0:02:51.8]} 8. h3 {[%clk
0:02:41.8]} 8... Nf5 {[%clk 0:02:51.2]} 9. hxg4 {[%clk 0:02:18.3]} 9... Nxe3
{[%clk 0:02:49.7]} 10. Qe2 {[%clk 0:02:13.3]} 10... Nxg4 {[%clk 0:02:35.5]} 11.
O-O-O {[%clk 0:02:10.8]} 11... d5 {[%clk 0:02:14.9]} 12. g3 {[%clk 0:01:57.1]}
12... e6 {[%clk 0:02:09.1]} 13. Ng5 {[%clk 0:01:44.3]} 13... h5 {[%clk
0:02:07.8]} 14. Bh3 {[%clk 0:01:43.2]} 14... Nh6 {[%clk 0:02:07.4]} 15. g4
{[%clk 0:01:43]} 15... hxg4 {[%clk 0:01:58.4]} 16. Bxg4 {[%clk 0:01:43.9]} 16...
Qe7 {[%clk 0:01:58.5]} 17. Na4 {[%clk 0:01:02.4]} 17... O-O-O {[%clk 0:01:55]}
18. Nc5 {[%clk 0:00:57.8]} 18... Nxd4 {[%clk 0:01:54.8]} 19. Rxd4 {[%clk
0:00:50.6]} 19... Qxc5 {[%clk 0:01:54.6]} 20. Bxe6+ {[%clk 0:00:44.7]} 20... Kb8
{[%clk 0:01:41.3]} 21. Rhd1 {[%clk 0:00:40]} 21... fxe6 {[%clk 0:01:33]} 22.
Nxe6 {[%clk 0:00:40.9]} 22... Qe7 {[%clk 0:01:33.1]} 23. Nxd8 {[%clk 0:00:40.2]}
23... Rxd8 {[%clk 0:01:32.4]} 24. c4 {[%clk 0:00:21.4]} 24... g5 {[%clk
0:01:07.8]} 25. Rxd5 {[%clk 0:00:17]} 25... Rxd5 {[%clk 0:01:07.3]} 26. cxd5
{[%clk 0:00:17.9]} 26... gxf4 {[%clk 0:01:07.1]} 27. d6 {[%clk 0:00:18.5]} 27...
cxd6 {[%clk 0:01:06.8]} 28. Rxd6 {[%clk 0:00:16]} 28... Bxe5 {[%clk 0:01:04.1]}
29. Rxh6 {[%clk 0:00:16]} 29... f3 {[%clk 0:00:41.3]} 30. Qxf3 {[%clk
0:00:14.3]} 30... Qg5+ {[%clk 0:00:40.7]} 31. Kc2 {[%clk 0:00:14.8]} 31... Qxh6
{[%clk 0:00:40.4]} 32. Qe4 {[%clk 0:00:14.5]} 32... Qc6+ {[%clk 0:00:39.5]} 0-1

[Event "*** SCC Grand Prix: Titled Tuesday Blitz"]
[Site "Chess.com"]
[Date "2020.07.07"]
[Round "2"]
[White "seorobert1971"]
[Black "Ceejay271"]
[Result "1-0"]
[WhiteElo "2691"]
[BlackElo "2328"]
[TimeControl "180+1"]
[EndTime "10:17:48 PDT"]
[Termination "seorobert1971 won by resignation"]

1. e4 {[%clk 0:03:00.9]} 1... c5 {[%clk 0:02:12.8]} 2. Nf3 {[%clk 0:03:00.6]}
2... Nc6 {[%clk 0:02:12.2]} 3. Bb5 {[%clk 0:02:58.6]} 3... g6 {[%clk 0:02:11.8]}
4. Bxc6 {[%clk 0:02:57.8]} 4... dxc6 {[%clk 0:02:11.7]} 5. O-O {[%clk 0:02:58]}
5... Bg7 {[%clk 0:02:11.8]} 6. d3 {[%clk 0:02:58.2]} 6... Qc7 {[%clk 0:02:10]}
7. Nbd2 {[%clk 0:02:58]} 7... e5 {[%clk 0:02:08.9]} 8. a4 {[%clk 0:02:56.1]}
8... Nf6 {[%clk 0:02:08.7]} 9. Nc4 {[%clk 0:02:56]} 9... Nd7 {[%clk 0:02:08.4]}
10. Bd2 {[%clk 0:02:49.2]} 10... O-O {[%clk 0:01:55.2]} 11. Qc1 {[%clk 0:02:49]}
11... Re8 {[%clk 0:01:54.5]} 12. Bh6 {[%clk 0:02:47.2]} 12... Bh8 {[%clk
0:01:53.5]} 13. h3 {[%clk 0:02:45.8]} 13... Nf8 {[%clk 0:01:52.6]} 14. Nh2
{[%clk 0:02:33.6]} 14... Ne6 {[%clk 0:01:49.2]} 15. c3 {[%clk 0:02:30.2]} 15...
b6 {[%clk 0:01:47.2]} 16. Ng4 {[%clk 0:02:26.5]} 16... Ba6 {[%clk 0:01:42.8]}
17. Qe3 {[%clk 0:02:18.1]} 17... Rad8 {[%clk 0:01:37.8]} 18. b3 {[%clk
0:02:13.8]} 18... Nf4 {[%clk 0:01:33.8]} 19. Rad1 {[%clk 0:02:13.3]} 19... f5
{[%clk 0:01:26.5]} 20. exf5 {[%clk 0:02:01.8]} 20... gxf5 {[%clk 0:01:27.4]} 21.
Ngxe5 {[%clk 0:01:45.6]} 21... Bxe5 {[%clk 0:01:19.2]} 22. Nxe5 {[%clk
0:01:44.9]} 22... Nxh3+ {[%clk 0:01:10]} 23. Qxh3 {[%clk 0:01:40.4]} 23... Qxe5
{[%clk 0:01:06.4]} 24. Rfe1 {[%clk 0:01:20.3]} 24... Qf6 {[%clk 0:00:43.3]} 25.
Qh5 {[%clk 0:01:01.9]} 25... Qg6 {[%clk 0:00:41.6]} 26. Qh4 {[%clk 0:01:01.6]}
26... Rxe1+ {[%clk 0:00:32.2]} 27. Rxe1 {[%clk 0:01:00.8]} 27... Rd7 {[%clk
0:00:18.1]} 28. Re3 {[%clk 0:00:56.6]} 28... Rxd3 {[%clk 0:00:13.2]} 29. Re7
{[%clk 0:00:46.3]} 29... Rd1+ {[%clk 0:00:08.5]} 30. Kh2 {[%clk 0:00:46.4]}
30... Rd6 {[%clk 0:00:08.3]} 31. Rg7+ {[%clk 0:00:42.5]} 31... Qxg7 {[%clk
0:00:06.9]} 32. Bxg7 {[%clk 0:00:43.4]} 32... Kxg7 {[%clk 0:00:05.9]} 33. Qe7+
{[%clk 0:00:43.3]} 1-0

[Event "*** SCC Grand Prix: Titled Tuesday Blitz"]
[Site "Chess.com"]
[Date "2020.07.07"]
[Round "2"]
[White "DortmundCity"]
[Black "Nara_Kh"]
[Result "1-0"]
[WhiteElo "2594"]
[BlackElo "2310"]
[TimeControl "180+1"]
[EndTime "10:17:48 PDT"]
[Termination "DortmundCity won by resignation"]

1. e4 {[%clk 0:03:00.8]} 1... c5 {[%clk 0:02:58]} 2. f4 {[%clk 0:02:59.8]} 2...
g6 {[%clk 0:02:55.7]} 3. Nf3 {[%clk 0:02:59.8]} 3... Bg7 {[%clk 0:02:55.9]} 4.
Be2 {[%clk 0:02:59.9]} 4... d6 {[%clk 0:02:39.2]} 5. O-O {[%clk 0:02:59.6]} 5...
e6 {[%clk 0:02:39.7]} 6. d3 {[%clk 0:02:59.8]} 6... Ne7 {[%clk 0:02:39.9]} 7. c3
{[%clk 0:02:58.1]} 7... O-O {[%clk 0:02:39.5]} 8. Be3 {[%clk 0:02:56.6]} 8...
Nbc6 {[%clk 0:02:37.3]} 9. Nbd2 {[%clk 0:02:56.1]} 9... b6 {[%clk 0:02:34.4]}
10. Bf2 {[%clk 0:02:41.5]} 10... Rb8 {[%clk 0:02:16.7]} 11. d4 {[%clk
0:02:32.1]} 11... h5 {[%clk 0:02:00.7]} 12. e5 {[%clk 0:02:28.8]} 12... cxd4
{[%clk 0:01:57.6]} 13. cxd4 {[%clk 0:02:18.8]} 13... dxe5 {[%clk 0:01:50.6]} 14.
dxe5 {[%clk 0:02:17.5]} 14... Nd5 {[%clk 0:01:46.2]} 15. g3 {[%clk 0:02:08.2]}
15... b5 {[%clk 0:01:41.4]} 16. Ne4 {[%clk 0:02:04.8]} 16... a6 {[%clk
0:01:28.7]} 17. Nfg5 {[%clk 0:01:56.5]} 17... f6 {[%clk 0:01:00.2]} 18. exf6
{[%clk 0:01:50]} 18... Nxf6 {[%clk 0:01:00]} 19. Rc1 {[%clk 0:01:36]} 19... Nxe4
{[%clk 0:00:19.8]} 20. Nxe4 {[%clk 0:01:34.5]} 20... Bd7 {[%clk 0:00:19.7]} 21.
Nc5 {[%clk 0:01:25.7]} 21... Rf7 {[%clk 0:00:19.6]} 22. Bd3 {[%clk 0:01:14.5]}
22... Ne7 {[%clk 0:00:09.8]} 23. Re1 {[%clk 0:01:07.2]} 23... Bc8 {[%clk
0:00:08.1]} 24. Bxg6 {[%clk 0:01:02.5]} 24... Qxd1 {[%clk 0:00:07]} 25. Bxf7+
{[%clk 0:01:02.8]} 25... Kxf7 {[%clk 0:00:07.9]} 26. Rcxd1 {[%clk 0:01:02.8]}
26... Bxb2 {[%clk 0:00:07.4]} 27. Rd6 {[%clk 0:01:00.1]} 27... Ba3 {[%clk
0:00:06.7]} 28. Rd3 {[%clk 0:00:56]} 28... Bxc5 {[%clk 0:00:06.5]} 29. Bxc5
{[%clk 0:00:56.2]} 29... Nd5 {[%clk 0:00:07.4]} 30. f5 {[%clk 0:00:52.4]} 30...
Bd7 {[%clk 0:00:06.4]} 31. fxe6+ {[%clk 0:00:50.5]} 31... Bxe6 {[%clk
0:00:07.3]} 32. Rf3+ {[%clk 0:00:50.3]} 32... Nf6 {[%clk 0:00:02.3]} 33. Bd4
{[%clk 0:00:50.5]} 1-0